[Event "Titled Tuesday Blitz May 9 Early 2023"]
[White "Howell, David W L"]
[Black "Nissinen, Niilo Man"]
[WhiteFideId "410608"]
[BlackFideId "30950767"]
[WhiteElo "2567"]
[BlackElo "1952"]
[Result "1/2-1/2"]
[Round "10"]
[TimeControl "180+2"]
[Date "2023.05.09"]
[WhiteClock "0:00:05"]
[BlackClock "0:00:04"]

1. d4 {[%clk 0:03:00]}  Nf6 {[%clk 0:02:59]} 2. c4 {[%clk 0:03:00]}  g6 {[%clk 0:02:59]} 3. Nc3 {[%clk 0:03:01]}  d5 {[%clk 0:03:00]} 4. Qa4+ {[%clk 0:02:47]}  c6 {[%clk 0:02:43]} 5. cxd5 {[%clk 0:02:23]}  Nxd5 {[%clk 0:02:42]} 6. Nf3 {[%clk 0:02:23]}  Bg7 {[%clk 0:02:41]} 7. Bg5 {[%clk 0:02:22]}  O-O {[%clk 0:02:34]} 8. e3 {[%clk 0:02:18]}  h6 {[%clk 0:02:22]} 9. Bh4 {[%clk 0:02:17]}  g5 {[%clk 0:01:40]} 10. Bg3 {[%clk 0:02:15]}  Qb6 {[%clk 0:01:41]} 11. Qc2 {[%clk 0:01:58]}  Nd7 {[%clk 0:01:29]} 12. Be2 {[%clk 0:01:49]}  Nb4 {[%clk 0:01:24]} 13. Qd2 {[%clk 0:01:44]}  c5 {[%clk 0:01:21]} 14. O-O {[%clk 0:01:40]}  cxd4 {[%clk 0:01:15]} 15. exd4 {[%clk 0:01:35]}  Nf6 {[%clk 0:01:03]} 16. Bc4 {[%clk 0:01:26]}  Bf5 {[%clk 0:00:59]} 17. a3 {[%clk 0:00:55]}  Nc6 {[%clk 0:00:50]} 18. Rfe1 {[%clk 0:00:47]}  Na5 {[%clk 0:00:43]} 19. Ba2 {[%clk 0:00:44]}  e6 {[%clk 0:00:36]} 20. Be5 {[%clk 0:00:32]}  Nb3 {[%clk 0:00:32]} 21. Bxb3 {[%clk 0:00:32]}  Qxb3 {[%clk 0:00:33]} 22. h4 {[%clk 0:00:32]}  g4 {[%clk 0:00:26]} 23. Nh2 {[%clk 0:00:32]}  Nd5 {[%clk 0:00:20]} 24. Rac1 {[%clk 0:00:21]}  Nxc3 {[%clk 0:00:18]} 25. Rxc3 {[%clk 0:00:20]}  Qd5 {[%clk 0:00:17]} 26. Rc5 {[%clk 0:00:20]}  Qd7 {[%clk 0:00:16]} 27. Qf4 {[%clk 0:00:19]}  f6 {[%clk 0:00:13]} 28. Bc7 {[%clk 0:00:15]}  Rac8 {[%clk 0:00:11]} 29. Rec1 {[%clk 0:00:13]}  b6 {[%clk 0:00:10]} 30. R5c3 {[%clk 0:00:13]}  h5 {[%clk 0:00:09]} 31. Nf1 {[%clk 0:00:13]}  Kh7 {[%clk 0:00:08]} 32. Ng3 {[%clk 0:00:13]}  Bh6 {[%clk 0:00:08]} 33. Qxh6+ {[%clk 0:00:02]}  Kxh6 {[%clk 0:00:07]} 34. Bf4+ {[%clk 0:00:03]}  Kh7 {[%clk 0:00:06]} 35. Rc7 {[%clk 0:00:03]}  Rxc7 {[%clk 0:00:06]} 36. Rxc7 {[%clk 0:00:03]}  Rf7 {[%clk 0:00:07]} 37. Rxd7 {[%clk 0:00:03]}  Rxd7 {[%clk 0:00:08]} 38. Be3 {[%clk 0:00:03]}  Kg6 {[%clk 0:00:08]} 39. Ne2 {[%clk 0:00:04]}  Rc7 {[%clk 0:00:08]} 40. Nc3 {[%clk 0:00:04]}  Bd3 {[%clk 0:00:08]} 41. Kh2 {[%clk 0:00:04]}  Kf5 {[%clk 0:00:08]} 42. Kg3 {[%clk 0:00:05]}  e5 {[%clk 0:00:08]} 43. dxe5 {[%clk 0:00:05]}  fxe5 {[%clk 0:00:08]} 44. Kh2 {[%clk 0:00:04]}  b5 {[%clk 0:00:06]} 45. Kg1 {[%clk 0:00:03]}  a5 {[%clk 0:00:06]} 46. Bb6 {[%clk 0:00:04]}  Rxc3 {[%clk 0:00:03]} 47. bxc3 {[%clk 0:00:04]}  a4 {[%clk 0:00:03]} 48. g3 {[%clk 0:00:04]}  Ke4 {[%clk 0:00:03]} 49. Ba5 {[%clk 0:00:04]}  Bc4 {[%clk 0:00:03]} 50. Bb4 {[%clk 0:00:05]}  Kf3 {[%clk 0:00:03]} 51. Bd6 {[%clk 0:00:05]}  e4 {[%clk 0:00:03]} 52. Bc5 {[%clk 0:00:05]}  Ke2 {[%clk 0:00:03]} 53. Kg2 {[%clk 0:00:06]}  Kd3 {[%clk 0:00:03]} 54. Bb4 {[%clk 0:00:06]}  Ke2 {[%clk 0:00:03]} 55. Bc5 {[%clk 0:00:06]}  Kd3 {[%clk 0:00:04]} 56. Bb4 {[%clk 0:00:05]}  Ke2 {[%clk 0:00:04]} 57. Kg1 {[%clk 0:00:05]}  Kf3 {[%clk 0:00:04]} 58. Bc5 {[%clk 0:00:05]}  Ke2 {[%clk 0:00:04]} 59. Kg2 {[%clk 0:00:05]} 1/2-1/2


[Site "https://www.chess.com"]

[Event "Titled Tuesday Blitz May 9 Early 2023"]
[White "Kim, Sergey"]
[Black "Shvedova, Alexandra"]
[WhiteFideId "13700570"]
[BlackFideId "54154782"]
[WhiteElo "2590"]
[BlackElo "1973"]
[Result "0-1"]
[Round "10"]
[TimeControl "180+2"]
[Date "2023.05.09"]
[WhiteClock "0:00:06"]
[BlackClock "0:00:14"]

1. d4 {[%clk 0:03:00]}  Nf6 {[%clk 0:02:59]} 2. c4 {[%clk 0:03:01]}  e6 {[%clk 0:03:00]} 3. Nc3 {[%clk 0:03:01]}  Bb4 {[%clk 0:02:59]} 4. Qc2 {[%clk 0:03:00]}  O-O {[%clk 0:02:59]} 5. a3 {[%clk 0:03:01]}  Bxc3+ {[%clk 0:02:59]} 6. Qxc3 {[%clk 0:03:02]}  b6 {[%clk 0:03:00]} 7. Nf3 {[%clk 0:03:02]}  Bb7 {[%clk 0:03:00]} 8. g3 {[%clk 0:03:02]}  d6 {[%clk 0:03:00]} 9. Bg2 {[%clk 0:03:02]}  Nbd7 {[%clk 0:03:00]} 10. O-O {[%clk 0:03:02]}  Qe7 {[%clk 0:03:00]} 11. b3 {[%clk 0:03:02]}  h6 {[%clk 0:02:59]} 12. Bb2 {[%clk 0:03:01]}  Rac8 {[%clk 0:02:56]} 13. Rfe1 {[%clk 0:02:58]}  Ne4 {[%clk 0:02:56]} 14. Qc2 {[%clk 0:02:58]}  f5 {[%clk 0:02:56]} 15. Nh4 {[%clk 0:02:51]}  Qf7 {[%clk 0:02:52]} 16. Rad1 {[%clk 0:02:46]}  a5 {[%clk 0:02:37]} 17. f3 {[%clk 0:02:23]}  Nef6 {[%clk 0:02:34]} 18. d5 {[%clk 0:02:10]}  exd5 {[%clk 0:02:23]} 19. Nxf5 {[%clk 0:02:09]}  dxc4 {[%clk 0:02:23]} 20. bxc4 {[%clk 0:02:09]}  Rce8 {[%clk 0:02:19]} 21. e4 {[%clk 0:02:09]}  Ne5 {[%clk 0:02:15]} 22. Rc1 {[%clk 0:02:04]}  Ba6 {[%clk 0:02:12]} 23. Ne3 {[%clk 0:02:03]}  Qh5 {[%clk 0:02:04]} 24. Rf1 {[%clk 0:02:00]}  Nc6 {[%clk 0:01:50]} 25. f4 {[%clk 0:01:51]}  Qc5 {[%clk 0:01:49]} 26. Qf2 {[%clk 0:01:35]}  Nxe4 {[%clk 0:01:49]} 27. Bxe4 {[%clk 0:01:32]}  Rxe4 {[%clk 0:01:50]} 28. Nd5 {[%clk 0:01:31]}  Qxf2+ {[%clk 0:01:47]} 29. Rxf2 {[%clk 0:01:31]}  Rf7 {[%clk 0:01:43]} 30. Rfc2 {[%clk 0:01:28]}  Nd4 {[%clk 0:01:42]} 31. Bxd4 {[%clk 0:01:26]}  Rxd4 {[%clk 0:01:43]} 32. Ne3 {[%clk 0:01:24]}  Rd3 {[%clk 0:01:40]} 33. Kf2 {[%clk 0:01:23]}  Rxa3 {[%clk 0:01:39]} 34. f5 {[%clk 0:01:21]}  g6 {[%clk 0:01:33]} 35. g4 {[%clk 0:01:21]}  Bc8 {[%clk 0:01:33]} 36. Rg1 {[%clk 0:01:14]}  Kf8 {[%clk 0:01:30]} 37. h4 {[%clk 0:01:11]}  Rb3 {[%clk 0:01:14]} 38. Re2 {[%clk 0:01:05]}  a4 {[%clk 0:01:14]} 39. Ra2 {[%clk 0:00:56]}  a3 {[%clk 0:01:13]} 40. Rga1 {[%clk 0:00:54]}  gxf5 {[%clk 0:01:11]} 41. g5 {[%clk 0:00:54]}  hxg5 {[%clk 0:01:10]} 42. hxg5 {[%clk 0:00:55]}  f4 {[%clk 0:01:08]} 43. Nd5 {[%clk 0:00:55]}  Rb2+ {[%clk 0:00:59]} 44. Kf3 {[%clk 0:00:48]}  Rxa2 {[%clk 0:00:57]} 45. Rxa2 {[%clk 0:00:49]}  Be6 {[%clk 0:00:51]} 46. Rxa3 {[%clk 0:00:46]}  Bxd5+ {[%clk 0:00:51]} 47. cxd5 {[%clk 0:00:46]}  Rf5 {[%clk 0:00:51]} 48. Kg4 {[%clk 0:00:45]}  Rxd5 {[%clk 0:00:51]} 49. Kxf4 {[%clk 0:00:38]}  Kf7 {[%clk 0:00:50]} 50. Rh3 {[%clk 0:00:35]}  Kg7 {[%clk 0:00:49]} 51. Rc3 {[%clk 0:00:31]}  Rc5 {[%clk 0:00:49]} 52. Re3 {[%clk 0:00:31]}  b5 {[%clk 0:00:46]} 53. Re7+ {[%clk 0:00:28]}  Kg6 {[%clk 0:00:47]} 54. Re6+ {[%clk 0:00:28]}  Kf7 {[%clk 0:00:47]} 55. Rf6+ {[%clk 0:00:28]}  Kg7 {[%clk 0:00:47]} 56. Re6 {[%clk 0:00:28]}  b4 {[%clk 0:00:47]} 57. Re8 {[%clk 0:00:28]}  b3 {[%clk 0:00:40]} 58. Rb8 {[%clk 0:00:27]}  Rc3 {[%clk 0:00:36]} 59. Kf5 {[%clk 0:00:27]}  Rf3+ {[%clk 0:00:36]} 60. Kg4 {[%clk 0:00:27]}  Re3 {[%clk 0:00:34]} 61. Kf5 {[%clk 0:00:27]}  c5 {[%clk 0:00:31]} 62. Rb7+ {[%clk 0:00:26]}  Kf8 {[%clk 0:00:32]} 63. g6 {[%clk 0:00:20]}  Rf3+ {[%clk 0:00:28]} 64. Ke6 {[%clk 0:00:20]}  c4 {[%clk 0:00:22]} 65. Kxd6 {[%clk 0:00:20]}  Kg8 {[%clk 0:00:19]} 66. Kd5 {[%clk 0:00:17]}  Rf4 {[%clk 0:00:19]} 67. Ke5 {[%clk 0:00:14]}  Rf2 {[%clk 0:00:17]} 68. Kd4 {[%clk 0:00:14]}  Rc2 {[%clk 0:00:16]} 69. Kd5 {[%clk 0:00:10]}  b2 {[%clk 0:00:16]} 70. Kd4 {[%clk 0:00:09]}  c3 {[%clk 0:00:15]} 71. Ke5 {[%clk 0:00:09]}  Rc1 {[%clk 0:00:14]} 72. Kf6 {[%clk 0:00:06]}  Rf1+ {[%clk 0:00:14]} 0-1


[Site "https://www.chess.com"]

[Event "Titled Tuesday Blitz May 9 Early 2023"]
[White "Pourkashiyan, Atousa"]
[Black "Kleiman, Jake"]
[WhiteFideId "12502014"]
[BlackFideId "2020041"]
[WhiteElo "2228"]
[BlackElo "2586"]
[Result "0-1"]
[Round "10"]
[TimeControl "180+2"]
[Date "2023.05.09"]
[WhiteClock "0:00:00"]
[BlackClock "0:00:23"]

1. e4 {[%clk 0:02:40]}  e5 {[%clk 0:02:59]} 2. Nf3 {[%clk 0:02:40]}  Nc6 {[%clk 0:03:00]} 3. Bb5 {[%clk 0:02:40]}  a6 {[%clk 0:03:01]} 4. Ba4 {[%clk 0:02:39]}  Nf6 {[%clk 0:03:02]} 5. O-O {[%clk 0:02:39]}  b5 {[%clk 0:03:02]} 6. Bb3 {[%clk 0:02:39]}  Bc5 {[%clk 0:03:03]} 7. h3 {[%clk 0:02:39]}  O-O {[%clk 0:03:03]} 8. Re1 {[%clk 0:02:38]}  d6 {[%clk 0:03:01]} 9. c3 {[%clk 0:02:39]}  Bb6 {[%clk 0:02:58]} 10. d4 {[%clk 0:02:37]}  h6 {[%clk 0:02:58]} 11. Be3 {[%clk 0:02:35]}  Rb8 {[%clk 0:02:55]} 12. Nbd2 {[%clk 0:02:26]}  Re8 {[%clk 0:02:55]} 13. a4 {[%clk 0:02:17]}  Bb7 {[%clk 0:02:36]} 14. d5 {[%clk 0:01:55]}  Bxe3 {[%clk 0:02:36]} 15. Rxe3 {[%clk 0:01:50]}  Ne7 {[%clk 0:02:36]} 16. Nh4 {[%clk 0:01:48]}  Kh7 {[%clk 0:02:25]} 17. Rg3 {[%clk 0:01:47]}  Bc8 {[%clk 0:02:21]} 18. axb5 {[%clk 0:01:40]}  axb5 {[%clk 0:02:20]} 19. Bc2 {[%clk 0:01:37]}  Rf8 {[%clk 0:02:12]} 20. Qf3 {[%clk 0:01:37]}  Ng6 {[%clk 0:02:06]} 21. Nf5 {[%clk 0:01:37]}  Rg8 {[%clk 0:01:42]} 22. Nf1 {[%clk 0:01:30]}  Nf4 {[%clk 0:01:39]} 23. N1e3 {[%clk 0:01:17]}  g6 {[%clk 0:01:29]} 24. Nh4 {[%clk 0:01:13]}  N6h5 {[%clk 0:01:26]} 25. Ng4 {[%clk 0:00:59]}  Qxh4 {[%clk 0:01:23]} 26. Ra7 {[%clk 0:00:56]}  Rb7 {[%clk 0:01:19]} 27. Ra1 {[%clk 0:00:47]}  Rf8 {[%clk 0:00:55]} 28. Qe3 {[%clk 0:00:47]}  Qg5 {[%clk 0:00:46]} 29. Rf3 {[%clk 0:00:41]}  Bxg4 {[%clk 0:00:45]} 30. hxg4 {[%clk 0:00:42]}  Qxg4 {[%clk 0:00:45]} 31. g3 {[%clk 0:00:42]}  Nh3+ {[%clk 0:00:39]} 32. Kf1 {[%clk 0:00:32]}  Ng5 {[%clk 0:00:40]} 33. Bd1 {[%clk 0:00:26]}  Qh3+ {[%clk 0:00:38]} 34. Ke1 {[%clk 0:00:24]}  Nxf3+ {[%clk 0:00:37]} 35. Bxf3 {[%clk 0:00:24]}  f5 {[%clk 0:00:32]} 36. exf5 {[%clk 0:00:12]}  Qxf5 {[%clk 0:00:31]} 37. Ke2 {[%clk 0:00:10]}  Nf6 {[%clk 0:00:27]} 38. Rh1 {[%clk 0:00:10]}  g5 {[%clk 0:00:26]} 39. Kf1 {[%clk 0:00:09]}  e4 {[%clk 0:00:25]} 40. Be2 {[%clk 0:00:09]}  Ng4 {[%clk 0:00:23]} 41. f4 {[%clk 0:00:00]}  Nxe3+ {[%clk 0:00:23]} 0-1


[Site "https://www.chess.com"]

[Event "Titled Tuesday Blitz May 9 Early 2023"]
[White "Ismagilov, Damir"]
[Black "Devaev, Alexander"]
[WhiteFideId "34199982"]
[BlackFideId "4169395"]
[WhiteElo "2143"]
[BlackElo "2172"]
[Result "1-0"]
[Round "10"]
[TimeControl "180+2"]
[Date "2023.05.09"]
[WhiteClock "0:00:55"]
[BlackClock "0:00:00"]

1. d4 {[%clk 0:03:00]}  Nf6 {[%clk 0:02:19]} 2. c4 {[%clk 0:02:58]}  e6 {[%clk 0:02:18]} 3. Nc3 {[%clk 0:02:57]}  Bb4 {[%clk 0:02:18]} 4. e3 {[%clk 0:02:54]}  c5 {[%clk 0:02:18]} 5. Bd3 {[%clk 0:02:39]}  cxd4 {[%clk 0:02:18]} 6. exd4 {[%clk 0:02:40]}  d5 {[%clk 0:02:18]} 7. cxd5 {[%clk 0:02:27]}  Nxd5 {[%clk 0:02:18]} 8. Ne2 {[%clk 0:02:27]}  Nc6 {[%clk 0:02:18]} 9. O-O {[%clk 0:02:26]}  O-O {[%clk 0:02:19]} 10. a3 {[%clk 0:02:17]}  Be7 {[%clk 0:02:05]} 11. Nxd5 {[%clk 0:02:04]}  Qxd5 {[%clk 0:02:04]} 12. Be3 {[%clk 0:02:02]}  Bf6 {[%clk 0:01:58]} 13. Qc2 {[%clk 0:01:53]}  h6 {[%clk 0:01:50]} 14. Rad1 {[%clk 0:01:52]}  Rd8 {[%clk 0:01:36]} 15. Bh7+ {[%clk 0:01:25]}  Kh8 {[%clk 0:01:31]} 16. Be4 {[%clk 0:01:26]}  Qb5 {[%clk 0:01:21]} 17. Nc3 {[%clk 0:01:22]}  Qa5 {[%clk 0:01:16]} 18. d5 {[%clk 0:01:22]}  Ne5 {[%clk 0:01:00]} 19. b4 {[%clk 0:01:02]}  Qxa3 {[%clk 0:00:46]} 20. Nb5 {[%clk 0:01:03]}  Qxb4 {[%clk 0:00:38]} 21. Nc7 {[%clk 0:01:03]}  Rb8 {[%clk 0:00:15]} 22. Bxa7 {[%clk 0:01:01]}  exd5 {[%clk 0:00:13]} 23. Nxd5 {[%clk 0:00:55]}  Ra8 {[%clk 0:00:00]} 24. Nxb4 {[%clk 0:00:55]} 1-0


[Site "https://www.chess.com"]

[Event "Titled Tuesday Blitz May 9 Early 2023"]
[White "Toktomushev, Teimur"]
[Black "Gontcharov, Vladislav"]
[WhiteFideId "14176726"]
[BlackFideId "4123492"]
[WhiteElo "2116"]
[BlackElo "2420"]
[Result "0-1"]
[Round "10"]
[TimeControl "180+2"]
[Date "2023.05.09"]
[WhiteClock "0:00:00"]
[BlackClock "0:00:06"]

1. d4 {[%clk 0:02:56]}  Nf6 {[%clk 0:02:58]} 2. c4 {[%clk 0:02:55]}  e6 {[%clk 0:02:59]} 3. Nf3 {[%clk 0:02:53]}  c5 {[%clk 0:02:59]} 4. d5 {[%clk 0:02:53]}  exd5 {[%clk 0:02:59]} 5. cxd5 {[%clk 0:02:54]}  d6 {[%clk 0:02:56]} 6. Nc3 {[%clk 0:02:55]}  g6 {[%clk 0:02:56]} 7. Nd2 {[%clk 0:02:54]}  Nbd7 {[%clk 0:02:56]} 8. e4 {[%clk 0:02:53]}  Bg7 {[%clk 0:02:56]} 9. Be2 {[%clk 0:02:53]}  O-O {[%clk 0:02:55]} 10. O-O {[%clk 0:02:54]}  Re8 {[%clk 0:02:56]} 11. Qc2 {[%clk 0:02:53]}  a6 {[%clk 0:02:53]} 12. a4 {[%clk 0:02:53]}  Qc7 {[%clk 0:02:53]} 13. h3 {[%clk 0:02:44]}  Rb8 {[%clk 0:02:53]} 14. Nc4 {[%clk 0:02:20]}  b5 {[%clk 0:02:36]} 15. axb5 {[%clk 0:02:20]}  axb5 {[%clk 0:02:36]} 16. Na5 {[%clk 0:02:21]}  c4 {[%clk 0:02:22]} 17. Nc6 {[%clk 0:02:13]}  Rb7 {[%clk 0:02:15]} 18. Ra7 {[%clk 0:01:33]}  Qb6 {[%clk 0:01:44]} 19. Be3 {[%clk 0:01:00]}  Nc5 {[%clk 0:01:44]} 20. Rfa1 {[%clk 0:00:49]}  Rxa7 {[%clk 0:01:34]} 21. Rxa7 {[%clk 0:00:34]}  Bb7 {[%clk 0:01:29]} 22. Ra1 {[%clk 0:00:20]}  Bxc6 {[%clk 0:01:25]} 23. dxc6 {[%clk 0:00:20]}  Qxc6 {[%clk 0:01:26]} 24. Bf3 {[%clk 0:00:11]}  Qb6 {[%clk 0:00:51]} 25. Rd1 {[%clk 0:00:06]}  b4 {[%clk 0:00:46]} 26. Na4 {[%clk 0:00:03]}  Qb5 {[%clk 0:00:46]} 27. Nxc5 {[%clk 0:00:04]}  dxc5 {[%clk 0:00:45]} 28. Be2 {[%clk 0:00:02]}  Nxe4 {[%clk 0:00:41]} 29. Bxc4 {[%clk 0:00:02]}  Qb6 {[%clk 0:00:32]} 30. Rd7 {[%clk 0:00:02]}  Nd6 {[%clk 0:00:32]} 31. Qb3 {[%clk 0:00:01]}  Rf8 {[%clk 0:00:25]} 32. Bd5 {[%clk 0:00:01]}  Be5 {[%clk 0:00:22]} 33. Qc2 {[%clk 0:00:01]}  Qb5 {[%clk 0:00:21]} 34. Re7 {[%clk 0:00:02]}  Bd4 {[%clk 0:00:19]} 35. Bxd4 {[%clk 0:00:01]}  cxd4 {[%clk 0:00:19]} 36. Qb3 {[%clk 0:00:01]}  Qc5 {[%clk 0:00:17]} 37. Rd7 {[%clk 0:00:01]}  h5 {[%clk 0:00:15]} 38. Kh2 {[%clk 0:00:01]}  Qc1 {[%clk 0:00:14]} 39. g3 {[%clk 0:00:01]}  Qd2 {[%clk 0:00:13]} 40. Kg2 {[%clk 0:00:02]}  Nf5 {[%clk 0:00:11]} 41. Be4 {[%clk 0:00:01]}  Ne3+ {[%clk 0:00:11]} 42. Kh1 {[%clk 0:00:01]}  Qe1+ {[%clk 0:00:11]} 43. Kh2 {[%clk 0:00:01]}  Qxf2+ {[%clk 0:00:11]} 44. Kh1 {[%clk 0:00:01]}  Qxg3 {[%clk 0:00:10]} 45. Qd3 {[%clk 0:00:01]}  Qxh3+ {[%clk 0:00:10]} 46. Kg1 {[%clk 0:00:02]}  Qg3+ {[%clk 0:00:10]} 47. Kh1 {[%clk 0:00:02]}  Kg7 {[%clk 0:00:09]} 48. Qxd4+ {[%clk 0:00:02]}  Kg8 {[%clk 0:00:08]} 49. Qd3 {[%clk 0:00:01]}  h4 {[%clk 0:00:08]} 50. Re7 {[%clk 0:00:00]}  Rc8 {[%clk 0:00:06]} 0-1


[Site "https://www.chess.com"]

[Event "Titled Tuesday Blitz May 9 Early 2023"]
[White "Al-Tarboush, Ward"]
[Black "Manukian, Artak"]
[WhiteFideId "7601450"]
[BlackFideId "13301373"]
[WhiteElo "2265"]
[BlackElo "2130"]
[Result "1-0"]
[Round "10"]
[TimeControl "180+2"]
[Date "2023.05.09"]
[WhiteClock "0:01:46"]
[BlackClock "0:00:00"]

1. Nc3 {[%clk 0:02:57]}  c5 {[%clk 0:02:58]} 2. e4 {[%clk 0:02:56]}  Nc6 {[%clk 0:02:57]} 3. Nf3 {[%clk 0:02:56]}  g6 {[%clk 0:02:57]} 4. Bb5 {[%clk 0:02:56]}  Nd4 {[%clk 0:02:56]} 5. Bd3 {[%clk 0:02:56]}  Bg7 {[%clk 0:02:56]} 6. O-O {[%clk 0:02:56]}  d6 {[%clk 0:02:53]} 7. Nxd4 {[%clk 0:02:56]}  cxd4 {[%clk 0:02:53]} 8. Ne2 {[%clk 0:02:55]}  Nf6 {[%clk 0:02:52]} 9. b3 {[%clk 0:02:45]}  O-O {[%clk 0:02:48]} 10. Bb2 {[%clk 0:02:45]}  e5 {[%clk 0:02:47]} 11. c3 {[%clk 0:02:43]}  dxc3 {[%clk 0:02:46]} 12. dxc3 {[%clk 0:02:44]}  Be6 {[%clk 0:02:30]} 13. c4 {[%clk 0:02:43]}  Nd7 {[%clk 0:02:23]} 14. Nc3 {[%clk 0:02:42]}  Nc5 {[%clk 0:02:22]} 15. Nd5 {[%clk 0:02:42]}  Bxd5 {[%clk 0:02:20]} 16. cxd5 {[%clk 0:02:43]}  a5 {[%clk 0:02:15]} 17. Qe2 {[%clk 0:02:41]}  f5 {[%clk 0:02:09]} 18. Rac1 {[%clk 0:02:37]}  f4 {[%clk 0:02:07]} 19. f3 {[%clk 0:02:36]}  Qb6 {[%clk 0:02:03]} 20. Bb5 {[%clk 0:02:35]}  Nd3+ {[%clk 0:01:50]} 21. Kh1 {[%clk 0:02:32]}  Nxc1 {[%clk 0:01:47]} 22. Rxc1 {[%clk 0:02:31]}  Rac8 {[%clk 0:01:44]} 23. Bc4 {[%clk 0:02:31]}  Bf6 {[%clk 0:01:40]} 24. a4 {[%clk 0:02:31]}  Kg7 {[%clk 0:01:37]} 25. Ba3 {[%clk 0:02:31]}  Be7 {[%clk 0:01:34]} 26. Rc2 {[%clk 0:02:30]}  h5 {[%clk 0:01:33]} 27. h3 {[%clk 0:02:30]}  g5 {[%clk 0:01:33]} 28. Bb5 {[%clk 0:02:26]}  Rxc2 {[%clk 0:01:21]} 29. Qxc2 {[%clk 0:02:27]}  Qd8 {[%clk 0:01:19]} 30. Qe2 {[%clk 0:02:19]}  Qc8 {[%clk 0:01:14]} 31. Qc4 {[%clk 0:02:20]}  Qxc4 {[%clk 0:01:13]} 32. bxc4 {[%clk 0:02:21]}  Kf6 {[%clk 0:01:01]} 33. Kg1 {[%clk 0:02:20]}  Rg8 {[%clk 0:00:57]} 34. Kf2 {[%clk 0:02:17]}  g4 {[%clk 0:00:57]} 35. hxg4 {[%clk 0:02:17]}  hxg4 {[%clk 0:00:58]} 36. Bd7 {[%clk 0:02:15]}  g3+ {[%clk 0:00:54]} 37. Kf1 {[%clk 0:02:13]}  Rh8 {[%clk 0:00:50]} 38. Bh3 {[%clk 0:02:13]}  Bf8 {[%clk 0:00:45]} 39. Bb2 {[%clk 0:02:13]}  Ke7 {[%clk 0:00:43]} 40. Bc3 {[%clk 0:02:13]}  b6 {[%clk 0:00:43]} 41. Ke2 {[%clk 0:02:13]}  Kd8 {[%clk 0:00:43]} 42. c5 {[%clk 0:02:09]}  bxc5 {[%clk 0:00:26]} 43. Bxa5+ {[%clk 0:02:10]}  Ke8 {[%clk 0:00:25]} 44. Bb6 {[%clk 0:02:09]}  Be7 {[%clk 0:00:19]} 45. Bc7 {[%clk 0:02:06]}  Kf7 {[%clk 0:00:17]} 46. a5 {[%clk 0:02:06]}  Ra8 {[%clk 0:00:16]} 47. Bd7 {[%clk 0:02:03]}  Bd8 {[%clk 0:00:14]} 48. Bxd6 {[%clk 0:01:57]}  Rxa5 {[%clk 0:00:12]} 49. Bxe5 {[%clk 0:01:55]}  Ra2+ {[%clk 0:00:12]} 50. Kf1 {[%clk 0:01:53]}  Rf2+ {[%clk 0:00:11]} 51. Kg1 {[%clk 0:01:53]}  Rc2 {[%clk 0:00:09]} 52. Kf1 {[%clk 0:01:53]}  Rf2+ {[%clk 0:00:09]} 53. Kg1 {[%clk 0:01:48]}  Rd2 {[%clk 0:00:09]} 54. Kf1 {[%clk 0:01:48]}  Ba5 {[%clk 0:00:06]} 55. Be6+ {[%clk 0:01:48]}  Ke7 {[%clk 0:00:05]} 56. Bxf4 {[%clk 0:01:49]}  Rd1+ {[%clk 0:00:05]} 57. Ke2 {[%clk 0:01:50]}  Re1+ {[%clk 0:00:05]} 58. Kd3 {[%clk 0:01:50]}  Rg1 {[%clk 0:00:04]} 59. Bxg3 {[%clk 0:01:49]}  Rxg2 {[%clk 0:00:05]} 60. Bh4+ {[%clk 0:01:49]}  Kd6 {[%clk 0:00:05]} 61. f4 {[%clk 0:01:46]}  Rg4 {[%clk 0:00:02]} 62. e5+ {[%clk 0:01:46]}  Kc7 {[%clk 0:00:02]} 63. d6+ {[%clk 0:01:46]}  Kc6 {[%clk 0:00:00]} 64. Bxg4 {[%clk 0:01:46]} 1-0


[Site "https://www.chess.com"]

[Event "Titled Tuesday Blitz May 9 Early 2023"]
[White "Reprintsev, Alexander"]
[Black "Koridze, Lile"]
[WhiteFideId "14100541"]
[BlackFideId "13612514"]
[WhiteElo "2218"]
[BlackElo "2047"]
[Result "1-0"]
[Round "10"]
[TimeControl "180+2"]
[Date "2023.05.09"]
[WhiteClock "0:02:05"]
[BlackClock "0:02:23"]

1. e4 {[%clk 0:03:00]}  c5 {[%clk 0:02:58]} 2. b3 {[%clk 0:02:58]}  d6 {[%clk 0:02:56]} 3. Bb2 {[%clk 0:02:58]}  Nf6 {[%clk 0:02:55]} 4. Bxf6 {[%clk 0:02:58]}  exf6 {[%clk 0:02:54]} 5. Bd3 {[%clk 0:02:58]}  g6 {[%clk 0:02:55]} 6. f4 {[%clk 0:02:55]}  Bg7 {[%clk 0:02:55]} 7. f5 {[%clk 0:02:51]}  O-O {[%clk 0:02:53]} 8. Nc3 {[%clk 0:02:50]}  Nc6 {[%clk 0:02:50]} 9. Nf3 {[%clk 0:02:48]}  Re8 {[%clk 0:02:49]} 10. O-O {[%clk 0:02:48]}  Ne5 {[%clk 0:02:48]} 11. h3 {[%clk 0:02:45]}  Nxd3 {[%clk 0:02:45]} 12. cxd3 {[%clk 0:02:45]}  gxf5 {[%clk 0:02:45]} 13. Nh4 {[%clk 0:02:44]}  fxe4 {[%clk 0:02:45]} 14. dxe4 {[%clk 0:02:39]}  b6 {[%clk 0:02:43]} 15. Qh5 {[%clk 0:02:36]}  Re5 {[%clk 0:02:42]} 16. Nf5 {[%clk 0:02:36]}  Bxf5 {[%clk 0:02:42]} 17. Rxf5 {[%clk 0:02:35]}  Qe8 {[%clk 0:02:40]} 18. Raf1 {[%clk 0:02:28]}  Rd8 {[%clk 0:02:38]} 19. d3 {[%clk 0:02:26]}  Qe6 {[%clk 0:02:36]} 20. Nd5 {[%clk 0:02:26]}  b5 {[%clk 0:02:32]} 21. R1f3 {[%clk 0:02:25]}  h6 {[%clk 0:02:29]} 22. Qg4 {[%clk 0:02:16]}  Kh7 {[%clk 0:02:27]} 23. Rg3 {[%clk 0:02:15]}  Rg8 {[%clk 0:02:23]} 24. Nxf6+ {[%clk 0:02:05]} 1-0


[Site "https://www.chess.com"]

[Event "Titled Tuesday Blitz May 9 Early 2023"]
[White "Vivas Zamora, Fabian Ernesto"]
[Black "Sreyas Payyappat"]
[WhiteFideId "3902480"]
[BlackFideId "46674969"]
[WhiteElo "2244"]
[BlackElo "2043"]
[Result "1-0"]
[Round "10"]
[TimeControl "180+2"]
[Date "2023.05.09"]
[WhiteClock "0:00:18"]
[BlackClock "0:00:16"]

1. c4 {[%clk 0:02:51]}  c5 {[%clk 0:02:59]} 2. Nf3 {[%clk 0:02:50]}  Nf6 {[%clk 0:02:58]} 3. Nc3 {[%clk 0:02:48]}  Nc6 {[%clk 0:02:58]} 4. d4 {[%clk 0:02:48]}  cxd4 {[%clk 0:02:54]} 5. Nxd4 {[%clk 0:02:49]}  e6 {[%clk 0:02:54]} 6. g3 {[%clk 0:02:48]}  Qb6 {[%clk 0:02:49]} 7. Ndb5 {[%clk 0:02:48]}  d5 {[%clk 0:02:27]} 8. Bf4 {[%clk 0:01:38]}  e5 {[%clk 0:02:14]} 9. cxd5 {[%clk 0:01:14]}  exf4 {[%clk 0:02:12]} 10. dxc6 {[%clk 0:01:13]}  Qxc6 {[%clk 0:01:38]} 11. Qd4 {[%clk 0:00:48]}  Be6 {[%clk 0:01:02]} 12. Bg2 {[%clk 0:00:18]}  Qxg2 {[%clk 0:00:50]} 13. Nc7+ {[%clk 0:00:19]}  Ke7 {[%clk 0:00:42]} 14. O-O-O {[%clk 0:00:19]}  Qc6 {[%clk 0:00:16]} 15. Qb4+ {[%clk 0:00:18]} 1-0


[Site "https://www.chess.com"]